bitfinex-derivatives/quotes_SOLF0:USTF0_20250307
["timestamp","ask_amount","ask_price","bid_price","bid_amount"]
[1741340250722,0.04612801,145.3,145.27,0.04482022]
[1741340250920,0.04612801,145.3,145.28,6.8824]
[1741340251227,0.04612801,145.3,145.27,0.04482022]
[1741340252916,6.8824,145.28,145.27,0.04482022]
[1741340253121,28.58,145.28,145.17,28.58]
[1741340253628,6.8832,145.27,145.21,6.8855]
[1741340254122,6.8837,145.26,145.2,6.8861]
[1741340254330,0.04586285,145.25,145.23,0.02328682]
[1741340255027,6.8843,145.24,145.23,0.02328682]
[1741340255229,35.4043,145.24,145.23,0.02328682]
[1741340255415,28.52,145.24,145.23,0.02328682]
[1741340255828,0.04586285,145.25,145.23,0.02328682]
[1741340262539,0.04586285,145.25,145.23,6.90788682]
[1741340262838,0.04586285,145.25,145.23,0.02328682]
[1741340263825,0.04586285,145.25,145.23,6.90798682]
[1741340264234,0.04586285,145.25,145.23,0.02328682]
[1741340264434,0.04586285,145.25,145.24,6.8843]
[1741340264634,0.04586285,145.25,145.23,0.02328682]
[1741340265031,6.92996285,145.25,145.23,0.02328682]
[1741340265236,0.04586285,145.25,145.23,0.02328682]
[1741340265640,0.04586285,145.25,145.24,6.8843]
[1741340266040,0.04586285,145.25,145.23,0.02328682]
[1741340266642,6.8843,145.24,145.23,0.02328682]
[1741340270747,28.28,145.24,145.16,28.32]
[1741340271151,28.28,145.24,145.16,6.888]
[1741340271352,6.8866,145.2,145.13,28.26]
[1741340271851,28.66378446,145.23,145.12,28.24]
[1741340272151,28.66378446,145.23,145.11,6.8901]
[1741340272152,0.04604979,145.18,145.11,6.8901]
[1741340272347,0.04604979,145.18,145.09,28.24]
[1741340272651,0.04750504,145.15,145.09,28.24]
[1741340272853,0.04750504,145.15,145.1,6.8906]
[1741340273051,6.93640504,145.15,145.1,6.8906]
[1741340273551,0.04750504,145.15,145.1,6.8906]
[1741340274252,0.04750504,145.15,145.08,118.46928245]
[1741340274451,0.04750504,145.15,145.09,6.8912]
[1741340275449,6.93640504,145.15,145.09,6.8912]
[1741340275651,28.24750504,145.15,145.07,6.892]
[1741340275948,1.9979,145.14,145.05,28.66378446]
[1741340276149,1.9979,145.14,145.07,6.8922]
[1741340276150,8.8874,145.14,145.07,6.8922]
[1741340276344,1.9979,145.14,145.05,28.66378446]
[1741340276545,0.04737374,145.12,145.05,28.66378446]
[1741340276952,0.04737374,145.12,145.1,6.8906]
[1741340277557,0.04737374,145.12,145.09,6.8912]
[1741340277857,0.04737374,145.12,145.05,28.66378446]
[1741340278057,0.04737374,145.12,145.1,6.8905]
[1741340278257,0.04737374,145.12,145.05,28.66378446]
[1741340279153,0.04737374,145.12,145.07,6.8919]
[1741340279353,0.04737374,145.12,145.05,28.66378446]
[1741340280657,0.04737374,145.12,145.09,6.8911]
[1741340281151,0.04737374,145.12,145.05,28.66378446]
[1741340281456,0.04737374,145.12,145.11,6.8904]
[1741340282153,7.374e-05,145.12,145.11,38.99418446]
[1741340282359,227.22,145.19,145.11,32.10378446]
[1741340282553,227.22,145.19,145.12,28.06]
[1741340283054,6.8881,145.16,145.09,28.12]
[1741340283356,6.8881,145.16,145.11,0.04737374]
[1741340283554,0.04467913,145.14,145.11,6.93747374]
[1741340283760,0.04467913,145.14,145.11,0.04737374]
[1741340286762,6.93387913,145.14,145.11,0.04737374]
[1741340287950,0.04467913,145.14,145.11,0.04737374]
[1741340288156,6.8896,145.13,145.11,0.04737374]
[1741340288362,0.04467913,145.14,145.11,0.04737374]
[1741340289165,6.8896,145.13,145.11,0.04737374]
[1741340289356,0.04467913,145.14,145.11,0.04737374]
[1741340289864,6.89,145.12,145.11,0.04737374]
[1741340290059,27.98,145.13,145.04,28.66378446]
[1741340290260,6.8918,145.09,145.04,6.8935]
[1741340290763,6.8918,145.09,145.03,28.02]
[1741340290764,6.8922,145.08,145.01,28.66378446]
[1741340290965,6.8922,145.08,145.02,28.0]
[1741340291164,28.02,145.09,145.01,28.66378446]
[1741340291459,0.05203235,145.06,145.03,6.8939]
[1741340291859,0.05203235,145.06,145.01,28.66378446]
[1741340292559,0.05203235,145.06,145.04,6.8935]
[1741340293462,0.05203235,145.06,145.01,28.66378446]
[1741340294070,0.05203235,145.06,145.05,6.8933]
[1741340295470,0.05203235,145.06,145.05,34.9133]
[1741340297065,3.235e-05,145.06,145.05,34.9133]
[1741340297267,3.235e-05,145.06,145.05,38.3533]
[1741340297467,1.8952,145.15,145.13,6.8895]
[1741340297670,1.8952,145.15,145.09,17.95711623]
[1741340297869,8.7839,145.15,145.07,17.95711623]
[1741340298074,1.8952,145.15,145.07,17.95711623]
[1741340298272,6.8897,145.13,145.05,45.97711623]
[1741340298566,6.8897,145.13,145.08,6.8917]
[1741340298773,0.05150267,145.1,145.08,6.93994721]
[1741340299573,0.05150267,145.1,145.08,0.04824721]
[1741340299968,0.05150267,145.1,145.08,6.94004721]
[1741340300677,0.05150267,145.1,145.09,6.8914]
[1741340301979,1.8952,145.15,145.14,6.889]
[1741340302166,2.0164,145.18,145.11,17.95711623]
[1741340302371,27.98,145.2,145.11,17.95711623]
[1741340302674,45.95711623,145.2,145.11,17.95711623]
[1741340303179,0.05082535,145.16,145.14,6.93746431]
[1741340303572,0.05082535,145.16,145.14,0.04876431]
[1741340304678,6.8885,145.15,145.14,0.04876431]
[1741340304870,0.05082535,145.16,145.07,27.96]
[1741340305073,19.93011623,145.18,145.08,27.96]
[1741340305276,6.889,145.14,145.08,27.96]
[1741340305474,45.91711623,145.16,145.08,27.96]
[1741340305874,6.8907,145.11,145.08,27.96]
[1741340306077,0.04971201,145.13,145.11,0.04447593]
[1741340306275,6.8915,145.09,145.04,34.8736]
[1741340306479,29.973,145.12,145.02,17.95711623]
[1741340306675,29.973,145.12,145.03,28.0]
[1741340306874,6.8906,145.11,145.06,6.8928]
[1741340307073,29.973,145.12,145.04,17.95711623]
[1741340307374,0.05025066,145.09,145.07,6.892]
[1741340307678,0.05025066,145.09,145.04,17.95711623]
[1741340308283,0.05025066,145.09,145.03,28.0]
[1741340308484,6.94205066,145.09,145.04,6.8937]
[1741340309084,6.8922,145.08,145.03,34.9739]
[1741340309281,6.8922,145.08,145.03,6.8939]
[1741340309480,0.05025066,145.09,144.97,207.95711623]
[1741340309481,0.05025066,145.09,145.0,46.05711623]
[1741340309685,17.95711623,145.1,145.0,46.05711623]
[1741340309886,0.04914101,145.06,145.0,46.05711623]
[1741340310183,0.04914101,145.06,145.05,6.8933]
[1741340310579,0.04914101,145.06,145.04,52.93041623]
[1741340310778,0.04914101,145.06,145.04,46.03711623]
[1741340311385,0.04914101,145.06,145.04,28.08]
[1741340311890,0.04914101,145.06,145.02,24.85141623]
[1741340312179,0.04914101,145.06,145.0,17.95711623]
[1741340312384,6.8938,145.04,145.0,28.12]
[1741340312581,0.0482356,145.04,145.0,28.12]
[1741340313182,0.0482356,145.04,144.99,17.95711623]
[1741340313381,6.9423356,145.04,144.99,24.85311623]
[1741340313682,6.9423356,145.04,144.99,6.896]
[1741340313885,0.0482356,145.04,144.97,46.05711623]
[1741340314288,6.8947,145.03,144.98,6.8965]
[1741340314479,0.0482356,145.04,144.97,46.05711623]
[1741340314880,6.8944,145.03,144.98,6.8965]
[1741340315283,46.10535183,145.04,144.94,46.07711623]
[1741340315590,1.9788,145.02,144.94,52.97521623]
[1741340315785,0.04392249,145.0,144.94,52.97521623]
[1741340315982,0.04392249,145.0,144.95,6.8978]
[1741340316183,0.04392249,145.0,144.94,46.07711623]
[1741340316489,6.94002249,145.0,144.94,52.97531623]
[1741340316785,0.04392249,145.0,144.94,46.07711623]
[1741340317577,0.04392249,145.0,144.94,28.12]
[1741340318189,0.04392249,145.0,144.94,46.07711623]
[1741340318789,0.04392249,145.0,144.96,17.95711623]
[1741340318990,0.04392249,145.0,144.98,17.95711623]
[1741340320480,0.04392249,145.0,144.92,27.98]
[1741340320683,0.04392249,145.0,144.93,17.95711623]
[1741340320891,0.04392249,145.0,144.97,17.95711623]
[1741340321090,0.04392249,145.0,144.97,45.95711623]
[1741340321389,0.04392249,145.0,144.98,6.8963]
[1741340321992,0.04392249,145.0,144.99,6.8961]
[1741340322291,0.04392249,145.0,144.99,24.85321623]
[1741340322878,3.8539,145.09,145.03,6.8939]
[1741340323093,3.8539,145.09,145.02,17.95711623]
[1741340324091,0.04552311,145.07,145.04,0.05131199]
[1741340324486,0.04552311,145.07,145.04,18.00842822]
[1741340324887,0.04552311,145.07,145.04,0.05131199]
[1741340326293,0.04552311,145.07,145.04,6.94491199]
[1741340326592,0.04552311,145.07,145.04,0.05131199]
[1741340327092,0.04552311,145.07,145.05,6.8929]
[1741340327485,0.04552311,145.07,145.04,0.05131199]
[1741340327685,0.04552311,145.07,145.04,6.94501199]
[1741340328194,6.93792311,145.07,145.04,0.05131199]
[1741340328394,0.04552311,145.07,145.04,0.05131199]
[1741340328892,28.08,145.06,144.96,28.08]
[1741340329199,21.85361623,145.05,144.96,28.08]
[1741340329500,21.85361623,145.05,144.96,34.9775]
[1741340329698,21.85361623,145.05,144.94,17.95711623]
[1741340329998,0.05268966,145.01,144.97,6.897]
[1741340330201,0.05268966,145.01,144.94,46.01711623]
[1741340330402,6.896,145.0,144.95,6.8979]
[1741340331404,0.05268966,145.01,144.93,6.8987]
[1741340331595,28.08,145.02,144.92,56.83321127]
[1741340331794,0.05138345,144.98,144.92,56.83321127]
[1741340332195,0.05138345,144.98,144.94,6.8981]
[1741340332493,0.05138345,144.98,144.92,56.83321127]
[1741340332690,0.05138345,144.98,144.97,6.8971]
[1741340333395,31.9965,145.05,144.96,28.1]
[1741340333702,1.8632,145.05,144.98,28.77321127]
[1741340334604,0.04628555,145.03,145.0,0.04420126]
[1741340334903,0.04628555,145.03,145.02,6.8946]
[1741340335104,0.04628555,145.03,145.0,0.04420126]
[1741340335302,0.04628555,145.03,145.01,6.895]
[1741340335502,0.04628555,145.03,145.0,0.04420126]
[1741340336301,0.04628555,145.03,145.01,6.8952]
[1741340336607,0.04628555,145.03,145.0,0.04420126]
[1741340339502,0.04628555,145.03,145.0,6.93970126]
[1741340339904,0.04628555,145.03,145.0,0.04420126]
[1741340340110,0.04628555,145.03,145.02,6.8947]
[1741340340605,0.04628555,145.03,145.02,34.9147]
[1741340341311,0.04628555,145.03,145.02,6.8947]
[1741340342801,231.3432,145.09,145.0,0.04420126]
[1741340343107,231.3432,145.09,144.99,28.08]
[1741340343302,231.3432,145.09,145.01,28.77321127]
[1741340343910,0.04437274,145.06,145.04,0.04502322]
[1741340344110,0.04437274,145.06,145.05,6.8933]
[1741340345407,7.274e-05,145.06,145.05,6.8933]
[1741340346006,7.274e-05,145.06,145.05,68.8933]
[1741340347115,143.11748418,145.2,145.05,65.44]
[1741340347313,3.9834,145.18,145.09,28.77321127]
[1741340347510,6.8887,145.15,145.09,27.94]
[1741340347712,3.9834,145.18,145.1,6.8909]
[1741340348014,3.9834,145.18,145.09,27.94]
[1741340348215,0.05056451,145.15,145.13,0.04386084]
[1741340349912,0.05056451,145.15,145.14,6.889]
[1741340350419,227.48,145.21,145.16,6.8877]
[1741340351305,234.3661,145.21,145.15,6.8885]
[1741340351715,0.04599527,145.19,145.17,0.04851553]
[1741340354627,0.04599527,145.19,145.17,6.93601553]
[1741340355420,0.04599527,145.19,145.18,6.8871]
[1741340355620,17.93160347,145.28,145.18,17.93160347]
[1741340355931,36.6498,145.26,145.21,6.8854]
[1741340356920,6.92864665,145.25,145.22,0.04823982]
[1741340357523,0.04484665,145.25,145.22,6.93333982]
[1741340357826,0.04484665,145.25,145.22,0.04823982]
[1741340358218,1.95144665,145.25,145.22,0.04823982]
[1741340358425,6.8848,145.23,145.22,0.04823982]
[1741340358926,8.8225,145.24,145.22,0.04823982]
[1741340359126,1.938,145.24,145.22,0.04823982]
[1741340360926,6.8848,145.23,145.22,0.04823982]
[1741340361830,1.938,145.24,145.16,17.93160347]
[1741340362023,27.74,145.23,145.14,52.56040347]
[1741340362422,6.8865,145.2,145.14,45.67160347]
[1741340362629,27.74,145.23,145.15,6.8883]
[1741340362930,6.8865,145.2,145.14,17.93160347]
[1741340363126,0.04699356,145.2,145.18,0.04756325]
[1741340363334,17.93160347,145.2,145.11,27.7]
[1741340363632,29.7413,145.19,145.12,6.8898]
[1741340363833,29.7413,145.19,145.1,45.65160347]
[1741340364525,0.05112658,145.16,145.13,0.05121003]
[1741340366825,6.93932658,145.16,145.13,0.05121003]
[1741340368826,0.05112658,145.16,145.13,27.85121003]
[1741340369031,0.05112658,145.16,145.15,6.8885]
[1741340373638,2.658e-05,145.16,145.15,6.8885]
[1741340373844,6.8852,145.23,145.14,28.70679264]
[1741340374433,6.8855,145.22,145.19,6.8864]
[1741340374639,31.5814,145.24,145.19,6.8864]
[1741340374832,3.8814,145.24,145.14,28.70679264]
[1741340375040,0.04947501,145.23,145.2,0.05062714]
[1741340375243,0.04947501,145.23,145.17,56.38679264]
[1741340375244,2.0332,145.26,145.17,56.38679264]
[1741340375545,0.04654632,145.23,145.21,6.8853]
[1741340376938,0.04654632,145.23,145.2,0.0437509]
[1741340377434,6.8874,145.18,145.14,6.8888]
[1741340377946,6.8867,145.19,145.14,6.8888]
[1741340378540,6.8867,145.19,145.12,27.64]
[1741340378541,0.0505822,145.18,145.15,6.93415116]
[1741340379542,0.0505822,145.18,145.16,6.888]
[1741340379845,0.0505822,145.18,145.15,0.04565116]
[1741340380045,0.0505822,145.18,145.17,6.8876]
[1741340381341,8.22e-05,145.18,145.17,6.8876]
[1741340381549,1.9806,145.28,145.17,3.44]
[1741340381747,1.9806,145.28,145.21,28.70679264]
[1741340381934,1.9806,145.28,145.22,27.6]
[1741340382134,1.9806,145.28,145.26,6.8832]
[1741340382342,1.9806,145.28,145.22,27.6]
[1741340382541,0.04805816,145.26,145.24,0.04508676]
[1741340383847,0.04805816,145.26,145.19,27.56]
[1741340384050,27.60805816,145.26,145.19,27.56]
[1741340384246,6.8847,145.24,145.19,27.56]
[1741340384453,56.26679264,145.26,145.14,27.56]
[1741340384750,6.8864,145.2,145.14,27.56]
[1741340384945,6.8864,145.2,145.19,0.05163528]
[1741340385147,6.8864,145.2,145.14,27.56]
[1741340385351,6.8867,145.19,145.18,0.04864584]
[1741340385765,3.83743189,145.21,145.18,0.04864584]
[1741340386769,10.72343189,145.21,145.18,0.04864584]
[1741340387163,3.83743189,145.21,145.18,0.04864584]
[1741340389067,6.8866,145.2,145.18,0.04864584]
[1741340389266,3.83743189,145.21,145.18,0.04864584]
[1741340390267,10.72353189,145.21,145.18,0.04864584]
[1741340390465,3.83743189,145.21,145.18,0.04864584]
[1741340390769,6.8862,145.2,145.18,0.04864584]
[1741340391269,6.8866,145.2,145.18,0.04864584]
[1741340392473,6.8867,145.19,145.18,0.04864584]
[1741340393870,3.83743189,145.21,145.18,0.04864584]
[1741340394773,6.8862,145.2,145.18,0.04864584]
[1741340394971,3.83743189,145.21,145.18,0.04864584]
[1741340395472,3.83743189,145.21,145.19,6.8866]
[1741340395972,3.83743189,145.21,145.2,6.8862]
[1741340396172,0.04913189,145.21,145.2,6.8862]
[1741340397064,0.04913189,145.21,145.2,24.81027666]
[1741340397065,3.189e-05,145.21,145.2,24.81027666]
[1741340398462,3.189e-05,145.21,145.2,35.54021293]
[1741340398870,3.189e-05,145.21,145.2,38.98021293]
[1741340399070,3.189e-05,145.21,145.2,35.54021293]
[1741340400177,3.9335,145.28,145.27,6.8829]
[1741340400375,2.009,145.31,145.23,27.24]
[1741340400581,2.009,145.31,145.24,28.65401293]
[1741340400967,2.009,145.31,145.25,62.0]
[1741340401277,6.92816382,145.29,145.27,0.04516027]
[1741340401484,0.04586382,145.29,145.27,0.04516027]
[1741340402367,0.04586382,145.29,145.06,20.6775]
[1741340402672,27.22,145.29,145.18,27.22]
[1741340402873,6.8849,145.23,145.18,34.1069]
[1741340403065,27.22,145.25,145.18,27.22]
[1741340403271,3.8124,145.24,145.18,27.22]
[1741340403877,6.93748813,145.22,145.2,0.05111848]
[1741340404069,0.05218813,145.22,145.2,0.05111848]
[1741340404274,0.05218813,145.22,145.15,27.24]
[1741340404467,3.8124,145.24,145.13,58.36697245]
[1741340404773,3.8124,145.24,145.13,85.60697245]
[1741340404975,3.8124,145.24,145.13,58.36697245]
[1741340405378,0.04393227,145.2,145.17,0.04791749]
[1741340405580,6.8872,145.18,145.13,58.36697245]
[1741340405766,27.26393227,145.2,145.13,58.36697245]
[1741340405970,27.22,145.2,145.13,58.36697245]
[1741340406378,27.22,145.2,145.11,28.65401293]
[1741340406572,27.22,145.2,145.11,55.85401293]
[1741340406773,0.04352729,145.17,145.14,0.05086588]
[1741340407176,6.93122729,145.17,145.14,0.05086588]
[1741340407879,0.04352729,145.17,145.09,28.65401293]
[1741340408079,1.9213,145.16,145.09,28.65401293]
[1741340408285,8.8094,145.16,145.11,6.8902]
[1741340408579,1.9213,145.16,145.09,28.65401293]
[1741340408972,0.04944198,145.14,145.09,28.65401293]
[1741340409575,0.04944198,145.14,145.06,92.88028194]
[1741340409885,0.04944198,145.14,145.06,55.79401293]
[1741340410087,0.04944198,145.14,145.08,6.8918]
[1741340410382,0.04944198,145.14,145.06,28.65401293]
[1741340410582,6.89,145.12,145.07,6.892]
[1741340410883,1.9024,145.15,145.06,28.65401293]
[1741340411181,0.04913889,145.11,145.06,28.65401293]
[1741340411382,0.04913889,145.11,145.07,6.892]
[1741340411570,0.04913889,145.11,145.06,28.65401293]
[1741340411774,0.04913889,145.11,145.03,127.80135573]
[1741340411973,6.8914,145.09,145.04,6.8936]
[1741340412479,0.05025015,145.08,145.03,65.05009366]
[1741340412677,0.05025015,145.08,145.03,9.29608073]
[1741340413073,6.8929,145.06,145.01,33.9747]
[1741340413583,0.05191214,145.05,145.0,28.65401293]
[1741340413885,0.05191214,145.05,145.01,27.06]
[1741340414191,1.9105,145.11,145.08,6.8915]
[1741340414484,1.9105,145.11,145.05,27.06]
[1741340414882,1.9105,145.11,145.07,6.892]
[1741340415385,0.04952102,145.1,145.08,0.0518635]
[1741340415585,0.04952102,145.1,145.08,6.9436635]
[1741340415983,0.04952102,145.1,145.08,0.0518635]
[1741340416187,0.04952102,145.1,145.09,6.8914]
[1741340416388,0.04952102,145.1,145.09,62.56541293]
[1741340417889,0.04952102,145.1,145.09,33.9114]
[1741340418487,0.04952102,145.1,145.09,62.56541293]
[1741340418884,0.04952102,145.1,145.09,55.67401293]
[1741340419786,0.04952102,145.1,145.09,62.56541293]
[1741340420790,0.04952102,145.1,145.08,0.0518635]
[1741340421482,6.8914,145.09,145.08,0.0518635]
[1741340421693,0.04952102,145.1,145.03,62.48821293]
[1741340421891,0.04952102,145.1,145.03,55.59401293]
[1741340422095,6.8919,145.08,145.04,6.8937]
[1741340422688,6.8919,145.08,145.03,55.59401293]
[1741340422992,0.05137563,145.07,145.03,55.59401293]
[1741340423395,0.05137563,145.07,145.04,6.8935]
[1741340424294,0.05137563,145.07,145.03,62.48811293]
[1741340424691,6.893,145.06,145.03,26.94]
[1741340424892,6.893,145.06,145.01,6.8948]
[1741340425095,6.893,145.06,145.0,55.55401293]
[1741340426192,0.05137563,145.07,145.0,28.65401293]
[1741340426495,0.05137563,145.07,144.99,26.88]
[1741340426696,6.8941,145.04,144.99,26.88]
[1741340426885,0.04903572,145.04,144.97,28.65401293]
[1741340427197,0.04903572,145.04,144.98,26.86]
[1741340427697,0.04903572,145.04,144.99,6.896]
[1741340428498,0.04903572,145.04,145.01,6.8951]
[1741340429687,0.04903572,145.04,145.02,6.8946]
[1741340430194,0.04903572,145.04,144.98,26.86]
[1741340430889,6.94323572,145.04,145.0,6.8954]
[1741340432291,0.04903572,145.04,144.98,26.84]
[1741340432498,0.04903572,145.04,145.01,6.8951]
[1741340433899,0.04903572,145.04,145.0,17.96812779]
[1741340434489,6.94323572,145.04,145.0,17.96812779]
[1741340434897,6.94323572,145.04,145.0,24.86362779]
[1741340435199,6.8943,145.03,144.97,17.96812779]
[1741340435394,6.8943,145.03,144.99,6.8958]
[1741340435995,6.8948,145.02,144.97,17.96812779]
[1741340436197,1.97,145.04,144.97,17.96812779]
[1741340436390,0.04433577,145.01,144.97,17.96812779]
[1741340436598,0.04433577,145.01,144.96,26.84]
[1741340437997,6.93983577,145.01,144.97,6.8969]
[1741340438198,0.04433577,145.01,144.96,26.84]
[1741340438394,0.04433577,145.01,144.98,28.76301528]
[1741340438798,0.04433577,145.01,145.0,6.8957]
[1741340439097,0.04433577,145.01,144.98,28.76301528]
[1741340439294,0.04433577,145.01,144.98,35.65961528]
[1741340439803,6.93953577,145.01,144.98,28.76301528]
[1741340440597,6.93953577,145.01,144.97,6.8969]
[1741340440804,6.8957,145.0,144.96,6.8972]
[1741340440998,0.04433577,145.01,144.96,6.8972]
[1741340441200,6.93973577,145.01,144.96,6.8972]
[1741340441708,0.04433577,145.01,144.95,28.76301528]
[1741340442005,6.896,145.0,144.95,28.76301528]
[1741340442207,6.896,145.0,144.95,35.66071528]
[1741340443105,6.896,145.0,144.96,6.8975]
[1741340443805,0.04433577,145.01,144.96,6.8975]
[1741340444001,6.93973577,145.01,144.97,6.8968]
[1741340444502,6.8959,145.0,144.95,35.66061528]
[1741340444808,0.04433577,145.01,144.95,28.76301528]
[1741340445406,6.93973577,145.01,144.96,6.8976]
[1741340445706,0.04433577,145.01,144.96,6.8976]
[1741340445906,6.93973577,145.01,144.96,6.8976]
[1741340446107,6.93973577,145.01,144.97,6.8971]
[1741340446602,6.93973577,145.01,144.96,6.8973]
[1741340447311,0.04433577,145.01,144.93,55.62301528]
[1741340447509,26.90433577,145.01,144.93,28.76301528]
[1741340447810,4.003,145.0,144.93,28.76301528]
[1741340448212,0.04707147,144.98,144.95,6.8977]
[1741340449013,0.04707147,144.98,144.93,35.66181528]
[1741340449309,0.04707147,144.98,144.93,6.8988]
[1741340449510,6.8976,144.96,144.92,62.52241528]
[1741340449704,6.8976,144.96,144.92,35.66241528]
[1741340449909,6.8987,144.94,144.89,28.76301528]
[1741340450111,6.8987,144.94,144.89,55.62301528]
[1741340450415,0.05162393,144.93,144.89,55.62301528]
[1741340450718,6.95082393,144.93,144.89,62.52361528]
[1741340451014,6.95082393,144.93,144.89,35.66361528]
[1741340451216,6.8996,144.92,144.89,28.76301528]
[1741340451403,0.05162393,144.93,144.89,28.76301528]
[1741340452409,6.95082393,144.93,144.89,28.76301528]
[1741340452915,0.05162393,144.93,144.89,28.76301528]
[1741340453310,0.05162393,144.93,144.89,35.66381528]
[1741340454614,0.05162393,144.93,144.89,28.76301528]
[1741340455710,0.05162393,144.93,144.92,6.8995]
[1741340455909,0.05162393,144.93,144.92,35.66251528]
[1741340456121,26.86,144.98,144.92,28.76301528]
[1741340456322,26.86,144.98,144.95,6.8977]
[1741340456829,26.86,144.98,144.96,6.8973]
[1741340457024,231.583,145.0,144.96,17.98233346]
[1741340457232,0.04861023,144.98,144.96,18.0272104]
[1741340457627,0.04861023,144.98,144.97,6.8971]
[1741340459534,0.04861023,144.98,144.96,18.0272104]
[1741340459735,0.04861023,144.98,144.96,0.04487694]
[1741340460435,6.8971,144.97,144.96,0.04487694]
[1741340460634,2.05041023,144.98,144.92,26.86]
[1741340460931,2.05041023,144.98,144.9,17.98233346]
[1741340461735,2.05041023,144.98,144.93,0.02063645]
[1741340462335,2.05041023,144.98,144.94,17.98233346]
[1741340462534,2.05041023,144.98,144.93,0.02063645]
[1741340463138,2.05041023,144.98,144.94,17.98233346]
[1741340463337,0.04861023,144.98,144.96,17.98233346]
[1741340463727,0.04861023,144.98,144.97,6.8971]
[1741340463943,0.04861023,144.98,144.96,17.98233346]
[1741340464237,0.04861023,144.98,144.96,0.02063645]
[1741340464741,0.04861023,144.98,144.97,6.8971]
[1741340465940,0.04861023,144.98,144.96,24.90036991]
[1741340466242,0.04861023,144.98,144.96,18.00296991]
[1741340466946,0.04861023,144.98,144.97,6.8971]
[1741340467333,0.04861023,144.98,144.96,18.00296991]
[1741340467842,0.04861023,144.98,144.96,0.02063645]
[1741340468542,0.04861023,144.98,144.96,6.91793645]
[1741340469136,0.04861023,144.98,144.96,0.02063645]
[1741340471349,0.04861023,144.98,144.97,17.98233346]
[1741340472348,0.04861023,144.98,144.97,24.87943346]
[1741340472751,5.9269,145.05,144.97,17.98233346]
[1741340473054,6.8941,145.04,145.0,6.8955]
[1741340473837,6.8941,145.04,145.01,0.04627923]
[1741340473838,0.04725238,145.03,145.01,0.04627923]
[1741340474547,6.8947,145.02,145.01,0.04627923]
[1741340476044,6.8961,145.0,144.97,17.98233346]
[1741340476254,5.9269,145.05,144.95,33.7579]
[1741340476255,26.86,145.02,144.95,44.84233346]
[1741340476448,26.86,145.02,144.93,44.84233346]
[1741340476648,44.84233346,145.02,144.93,44.84233346]
[1741340476842,44.84233346,145.02,144.91,44.84233346]
[1741340477244,0.04998606,144.98,144.97,17.98233346]
[1741340477441,1.9655,145.05,144.97,17.98233346]
[1741340477647,0.04344432,144.99,144.98,6.8966]
[1741340477847,8.8591,145.05,144.98,6.8966]
[1741340478141,0.05022326,145.0,144.97,18.00530091]
[1741340478340,1.9655,145.05,144.97,17.98233346]
[1741340478555,0.0437838,145.0,144.97,18.00530091]
[1741340478754,0.0437838,145.0,144.97,24.90200091]
[1741340479956,0.0437838,145.0,144.97,0.02296745]
[1741340480453,0.0437838,145.0,144.97,6.91996745]
[1741340480947,0.0437838,145.0,144.98,6.8966]
[1741340481143,0.0437838,145.0,144.97,18.00530091]
[1741340481553,0.0437838,145.0,144.98,6.8966]
[1741340482454,0.0437838,145.0,144.97,0.02296745]
[1741340483052,0.0437838,145.0,144.91,44.82233346]
[1741340483257,17.98233346,145.0,144.91,44.82233346]
[1741340483456,17.98233346,145.0,144.91,17.98233346]
[1741340483658,6.8976,144.97,144.91,17.98233346]
[1741340483863,2.0292,144.99,144.91,17.98233346]
[1741340484055,2.0333,144.98,144.91,17.98233346]
[1741340484247,0.05267943,144.96,144.91,17.98233346]
[1741340484450,6.95057943,144.96,144.91,17.98233346]
[1741340484852,0.05267943,144.96,144.89,24.88293346]
[1741340485159,6.8983,144.95,144.89,24.88293346]
[1741340485359,0.05267943,144.96,144.89,17.98233346]
[1741340485765,6.8986,144.94,144.89,17.98233346]
[1741340485961,6.8986,144.94,144.89,24.88313346]
[1741340486259,0.04485148,144.93,144.89,24.88313346]
[1741340486454,6.8995,144.92,144.87,44.84233346]
[1741340486854,6.8995,144.92,144.87,17.98233346]
[1741340487056,17.98233346,144.89,144.83,3.30498824]
[1741340487251,227.6,144.88,144.83,3.30498824]
[1741340487563,27.09220464,144.87,144.83,3.30498824]
[1741340489261,6.9033,144.84,144.83,3.30498824]
[1741340490565,6.9033,144.84,144.76,55.85559362]
[1741340490958,0.04838637,144.81,144.76,55.85559362]
[1741340492066,0.04838637,144.81,144.76,62.76269362]
[1741340492371,0.04838637,144.81,144.76,55.85559362]